[Event "Lliga Catalana DH 2023"]
[Site "Catalonia"]
[Date "2023.02.18"]
[Round "5.5"]
[White "Perpinya Rofes, Lluis Maria"]
[Black "Fernandez Lozano, Francesc"]
[Result "1-0"]
[ECO "B15"]
[WhiteElo "2261"]
[BlackElo "2036"]
[Annotator "TA"]
[PlyCount "61"]
[EventDate "2023.01.24"]
[EventType "team-tourn"]
[EventCountry "ESP"]
[SourceTitle "playchess.com"]
[Source "ChessBase"]
[SourceQuality "1"]
[TimeControl "40/5400+30:1800+30"]

{[%evp 13,61,30,33,10,30,29,33,30,26,29,30,27,34,25,32,20,15,16,16,16,20,15,19,12,51,59,61,37,68,25,35,46,172,172,244,242,447,447,447,447,447,447,565,564,629,573,662,647,659,570]} 1. e4 {[%emt 0:03:31]} g6 {[%emt 0:00:05]} 2. d4 {[%emt 0:00:13]} Bg7 {[%emt 0:00:09]} 3. Nc3 {[%emt 0:00:21]} c6 {[%emt 0:00:07]} 4. Nf3 {[%emt 0:01:38]} d5 {[%emt 0:00:11]} 5. h3 {[%emt 0:00:43]} dxe4 {[%emt 0:00:11]} 6. Nxe4 {[%emt 0:00:30]} Nf6 {[%emt 0:00:06]} 7. Nxf6+ {[%emt 0:01:33]} exf6 {[%emt 0:00:10]} 8. Bf4 {[%emt 0:04:05] B15: Caro-Kann: 3 Nc3: 3...g6 and 3...dxe4 4 Nxe4 Nf6 5 Nxf6+ exf6.} Be6 {[%emt 0:06:36] Black is weak on the dark squares} 9. Be2 {[%emt 0:01:21]} O-O {[%emt 0:02:22]} 10. O-O {[%emt 0:01:11] White is slightly better.} Re8 {[%emt 0:00:12]} 11. c4 {[%emt 0:03:16]} a5 {[%emt 0:02:23]} 12. Qd2 {[%emt 0:04:56] [#]} a4 $146 {[%emt 0:05:20]} ({Predecessor:} 12... Na6 13. Rad1 Bf8 14. a3 Nc7 15. Rfe1 Bd6 16. Bf1 a4 17. Qc1 Rc8 18. Re4 Bf5 19. Rxe8+ Nxe8 {0-1 Winiwarter,F (2210)-Weiss,C (2383) Niederoesterreich Landesliga 0405 2004 (1)}) 13. Rfd1 {[%emt 0:06:48]} Qa5 {[%emt 0:03:13]} 14. d5 {[%emt 0:09:48]} Bd7 {[%emt 0:08:42]} 15. Qxa5 {[%emt 0:22:43]} Rxa5 {[%emt 0:00:19]} 16. Kf1 {[%emt 0:00:48]} Ra8 {[%emt 0:13:23]} 17. dxc6 {[%emt 0:06:57]} Bxc6 {[%emt 0:00:29]} 18. Nd4 {[%emt 0:00:06]} Bf8 {[%emt 0:12:47]} 19. Nxc6 {[%emt 0:06:24]} Nxc6 {[%emt 0:00:28]} 20. Rd7 {[%emt 0:00:27]} Re4 {[%emt 0:11:23]} 21. Bg3 {[%emt 0:12:23]} Rae8 {[%emt 0:03:09]} 22. Bf3 {[%emt 0:02:12]} R4e6 {[%emt 0:05:03] This costs Black the game.} (22... Rxc4 $2 23. Bd5 (23. Rxb7 Ne5 $14) 23... Rce4 24. Bxf7+ Kh8 25. Bxe8 (25. Rxb7 Rd8 $16) 25... Rxe8 26. Rxb7 $18) ({Better is} 22... R8e7 $1 $14) 23. Rxb7 $18 {[%emt 0:02:40]} Bb4 {[%emt 0:00:27]} (23... Ne5 $142) 24. Kg1 {[%emt 0:00:24] [#] Black must now prevent Bxc6.} a3 $2 {[%emt 0:03:14]} (24... Bf8 25. Bd5 Re1+ 26. Kh2 Rxa1 27. Bxf7+ (27. Bxc6 Ree1 $17) 27... Kh8 28. Bxe8 Ne5 29. Bxa4 Nxc4) 25. Bxc6 {[%emt 0:04:40] This pair of bishops is nice. White is clearly winning.} axb2 {[%emt 0:00:12]} 26. Rf1 {[%emt 0:00:03]} (26. Bxe8 $2 {loses.} bxa1=Q+ 27. Kh2 Rxe8 $19) 26... Rxc6 {[%emt 0:15:42]} 27. Rxb4 {[%emt 0:00:10]} Re2 {[%emt 0:01:07]} 28. Rb1 {[%emt 0:01:08]} f5 {[%emt 0:01:17]} 29. R4xb2 {[%emt 0:00:35]} Rxb2 {[%emt 0:00:13]} 30. Rxb2 {[%emt 0:00:04]} Rxc4 {[%emt 0:00:14]} 31. Be5 {[%emt 0:00:35] Weighted Error Value: White=0.09 (flawless) /Black=0.44} 1-0

[Event "Lliga Catalana DH 2023"]
[Site "Catalonia"]
[Date "2023.02.18"]
[Round "5.5"]
[White "Congiu, Mathilde"]
[Black "Staromiejski Llorente, Albert"]
[Result "1-0"]
[ECO "C10"]
[WhiteElo "2201"]
[BlackElo "1734"]
[Annotator "TA"]
[PlyCount "67"]
[EventDate "2023.01.24"]
[EventType "team-tourn"]
[EventCountry "ESP"]
[SourceTitle "playchess.com"]
[Source "ChessBase"]
[SourceQuality "1"]
[TimeControl "40/5400+30:1800+30"]

{[%evp 9,67,53,53,37,91,87,94,93,109,104,106,91,108,85,118,114,150,64,57,66,106,97,416,399,437,433,439,438,414,428,653,678,648,467,437,450,443,447,1358,1349,1586,1529,1933,1851,1700,1718,1709,1634,5481,3247,2089,1199,29987,29988,29988,29989,29986,5381,29988,29989]} 1. e4 {[%cal Be2e4,Be4e5][%mdl 32]} Nc6 2. Nc3 e6 3. d4 d5 4. Nf3 Bb4 5. e5 f6 6. a3 {C10: French with 3 Nc3: Unusual Black 3rd moves and 3...dxe4.} Ba5 ({Black should try} 6... Bxc3+ $14 7. bxc3 fxe5) 7. b4 $16 Bb6 8. Na4 {[#] White is better.} ({Don't do} 8. Bb5 Nge7 $14) 8... Nge7 $146 ({Predecessor:} 8... fxe5 9. Nxb6 axb6 10. dxe5 Nge7 11. Bd3 O-O 12. Ng5 Nf5 13. g4 h6 14. Nxe6 Bxe6 15. gxf5 Bxf5 16. Bxf5 Rxf5 17. Qg4 Rxe5+ 18. Kf1 Qf6 19. Rb1 {½-½ Contessotto,E (2167)-Zunino,J Chivilcoy IRT CEFA/Ceramica 2001 (9)}) 9. exf6 gxf6 10. Bb2 Ng6 11. h4 {[%cal Bh2h4,Bh4h5][%mdl 32]} Bd7 12. h5 $36 {[%mdl 2048] Black is under strong pressure.} Nge7 13. Nxb6 (13. Bd3 $16) 13... axb6 $14 14. Bd3 {[%cal Bf1d3,Bd3h7,Bh7g6][%mdl 32]} Na7 15. Qe2 {White is more active.} c5 $2 {[%mdl 8192] A mistake that costs the game.} 16. dxc5 $18 {[%mdl 64] Discovered Attack} e5 {[#]} 17. Nxe5 $1 {[%mdl 512]} fxe5 18. Qxe5 Rf8 {Black is weak on the dark squares} 19. Bxh7 {White wants to mate with Bg6+.} Qc8 (19... Qb8 $142 20. Qxb8+ Rxb8 21. cxb6 Nb5) 20. Bg6+ Kd8 21. Qg7 {Prevents bxc5} Rg8 22. Qh7 {aiming for Bf6.} ({Don't play} 22. Qf6 Qc6 23. cxb6 Nac8 24. Qxc6 Bxc6 $18) 22... Qc6 {Inhibits Bf6.} 23. O-O-O Nb5 (23... bxc5 $142 24. b5 Qxb5) 24. Rhe1 Be6 25. Bf6 {[%cal Bb2f6,Bf6e7,Be7c5][%mdl 32]} Qd7 26. Bxe7+ {A strong pair of Bishops.} Kc7 {[#]} 27. Rxe6 $1 Qxe6 28. Bf5 Rg7 29. Qxg7 Qxf5 30. cxb6+ Kd7 31. Bc5+ Kc6 32. Qh6+ Kd7 33. Re1 (33. c4 $142 Rc8 34. Qg7+ Kc6 35. cxd5+ Qxd5 36. Rxd5 Kxd5 37. Qxb7+ Rc6 38. Qf7+ Ke4 39. Qf3+ Ke5 40. b7) 33... Rd8 34. a4 {Artfully played by Congiu.   Weighted Error Value: White=0.22 (precise) /Black=1.11} 1-0

[Event "Lliga Catalana DH 2023"]
[Site "Catalonia"]
[Date "2023.02.18"]
[Round "5.5"]
[White "Lerch i Gallemi, Jose Ma."]
[Black "Garcia Jimenez, Francisco Javier"]
[Result "1/2-1/2"]
[ECO "C10"]
[WhiteElo "2152"]
[BlackElo "2230"]
[Annotator "TA"]
[PlyCount "27"]
[EventDate "2023.01.24"]
[EventType "team-tourn"]
[EventCountry "ESP"]
[SourceTitle "playchess.com"]
[Source "ChessBase"]
[SourceQuality "1"]
[TimeControl "40/5400+30:1800+30"]

{[%evp 9,27,58,62,40,99,108,93,102,116,109,125,87,105,70,129,117,149,54,60,59]} 1. e4 {[%cal Be2e4,Be4e5][%mdl 32]} Nc6 2. Nc3 e6 3. d4 d5 4. Nf3 Bb4 5. e5 f6 6. a3 {C10: French with 3 Nc3: Unusual Black 3rd moves and 3...dxe4.} Ba5 (6... Bxc3+ $14 7. bxc3 Nge7) 7. b4 $16 Bb6 8. Na4 {[#] White is more active. White is better.} ({Don't play} 8. Bb5 Nge7 $14) 8... Nge7 $146 ({Predecessor:} 8... fxe5 9. Nxb6 axb6 10. dxe5 Nge7 11. Bd3 O-O 12. Ng5 Nf5 13. g4 h6 14. Nxe6 Bxe6 15. gxf5 Bxf5 16. Bxf5 Rxf5 17. Qg4 Rxe5+ 18. Kf1 Qf6 19. Rb1 {½-½ Contessotto,E (2167)-Zunino,J Chivilcoy IRT CEFA/Ceramica 2001 (9)}) 9. exf6 gxf6 10. Bb2 Ng6 11. h4 {[%cal Bh2h4,Bh4h5][%mdl 32]} Bd7 ({Better is} 11... Qd6 $14) 12. h5 Nge7 13. Nxb6 (13. Bd3 $16) 13... axb6 $14 14. Bd3 {Weighted Error Value: White=0.21 (precise) /Black=0.21 (precise)} 1/2-1/2

[Event "Lliga Catalana DH 2023"]
[Site "Catalonia"]
[Date "2023.02.18"]
[Round "5.6"]
[White "Vehi Bach, Victor Manuel"]
[Black "Sierra Montoya, Miquel"]
[Result "1/2-1/2"]
[ECO "B67"]
[WhiteElo "2242"]
[BlackElo "2159"]
[Annotator "TA"]
[PlyCount "58"]
[EventDate "2023.01.24"]
[EventType "team-tourn"]
[EventCountry "ESP"]
[SourceTitle "playchess.com"]
[Source "ChessBase"]
[SourceQuality "1"]
[TimeControl "40/5400+30:1800+30"]

{[%evp 18,58,22,23,21,22,27,10,41,0,52,0,0,-14,0,0,0,-22,0,-15,18,10,10,10,41,33,37,0,0,0,14,0,0,-12,0,0,0,-37,-29,-33,-17,-92,-77]} 1. e4 c5 2. Nf3 d6 3. d4 cxd4 4. Nxd4 Nf6 5. Nc3 Nc6 6. Bg5 e6 7. Qd2 a6 8. O-O-O Bd7 9. f3 Be7 10. Kb1 Nxd4 $1 {[%mdl 4] is more profitable than 10...Qc7 at the moment. B67: Sicilian: Richter-Rauzer: 7...a6 8 0-0-0 Bd7, lines without 9 f4 Be7.} 11. Qxd4 b5 12. h4 Rb8 {[#] The position is equal.} 13. Be3 $146 ({Predecessor:} 13. g4 b4 14. Ne2 a5 15. Ng3 Qc7 16. Be3 Rc8 17. Rh2 d5 18. e5 O-O 19. Ba6 {1-0 Carlsen,M (2834)-Maghsoodloo,P (2656) Wch Rapid Almaty 2022 (13)}) 13... h5 (13... b4 $11 14. Ne2 O-O) 14. Bg5 (14. e5 $14 dxe5 15. Qxe5) 14... b4 15. Ne2 a5 {[%cal Ba6a5,Ba5a4,Ba4a3][%mdl 32]} 16. Nc1 Qc7 17. Be2 (17. Qc4 $5 {[%cal Rc4c7]} Qb7 18. Be2 $11) 17... a4 18. Bxf6 (18. Qc4 $5 {[%cal Rc4c7]} Qa5 19. Qa6 $11) 18... Bxf6 19. Qxd6 Qxd6 (19... Kd8 {is more complex.} 20. g3 a3 21. Qxc7+ Kxc7 22. b3 Bc6) 20. Rxd6 a3 (20... Ke7 $5 {[%cal Re7d6]} 21. Rhd1 Rhd8 $11) 21. b3 Ke7 22. Rdd1 Bc6 23. Bc4 Rhd8 24. Rxd8 Rxd8 25. Bd3 Bd4 {[%mdl 1024] Black has compensation.} 26. Ne2 Bf2 27. g3 e5 28. Rf1 Be3 29. Ng1 (29. Nc1 $11 {remains equal.}) 29... Rd6 {Weighted Error Value: White=0.20 (precise) /Black=0.15 (very precise)} 1/2-1/2

[Event "Lliga Catalana DH 2023"]
[Site "Catalonia"]
[Date "2023.02.18"]
[Round "5.6"]
[White "Parra Dolz, Mario"]
[Black "Bernado Lopez, Roger"]
[Result "0-1"]
[ECO "A04"]
[WhiteElo "2107"]
[BlackElo "2167"]
[Annotator "TA"]
[PlyCount "80"]
[EventDate "2023.01.24"]
[EventType "team-tourn"]
[EventCountry "ESP"]
[SourceTitle "playchess.com"]
[Source "ChessBase"]
[SourceQuality "1"]
[TimeControl "40/5400+30:1800+30"]

{[%evp 16,80,-9,-65,-74,-82,-61,-58,-8,-210,-231,-241,-236,-232,-222,-241,-225,-238,-233,-243,-243,-238,-213,-211,-214,-208,-199,-201,-169,-305,-295,-287,-135,-362,-338,-326,-342,-393,-405,-430,-401,-451,-379,-396,-385,-510,-522,-493,-502,-562,-542,-538,-536,-981,-814,-1068,-677,-1177,-1078,-12838,-12838,-29985,-29986,-29986,-29987,-29998,-29999]} 1. e4 {[%emt 0:03:59]} c5 {[%emt 0:00:37]} 2. Nf3 {[%emt 0:00:08]} d6 {[%emt 0:00:05]} 3. d3 {[%emt 0:00:04]} Nc6 {[%emt 0:00:35]} 4. g3 {[%emt 0:00:04]} g6 {[%emt 0:00:23]} 5. Bg2 {[%emt 0:00:03]} Bg7 {[%emt 0:00:06]} 6. O-O {[%emt 0:00:07]} e5 {[%emt 0:00:26]} 7. c3 {[%emt 0:01:51]} Nge7 {[%emt 0:00:07]} 8. Be3 {[%emt 0:00:12]} O-O {[%emt 0:00:41]} 9. d4 {[%emt 0:00:35]} (9. a3 $11) 9... exd4 $1 $15 {[%emt 0:00:46] A04: Unusual lines after 1 Nf3 and King's Indian Attack.} 10. cxd4 {[%emt 0:00:12]} Bg4 {[%emt 0:08:30]} 11. dxc5 {[%emt 0:12:36]} Bxb2 {[%emt 0:00:00] [#]} (11... dxc5 $15 12. Nbd2 b6) 12. cxd6 $146 {[%emt 0:01:15]} ({Predecessor:} 12. Nbd2 Bxa1 13. Qxa1 f6 14. h3 Be6 15. Rd1 dxc5 16. Nb3 Qc8 17. Nxc5 b6 18. Nxe6 Qxe6 {1-0 Thilakarathne,G (2398)-Tan,J (2151) World Cup U18 Prel rapid 2021 (9)}) 12... Bxa1 $19 {[%emt 0:00:00]} 13. dxe7 {[%emt 0:00:40]} Qxe7 {[%emt 0:00:00]} ({Worse is} 13... Nxe7 14. Qb3 $17) 14. Nbd2 {[%emt 0:02:47]} Bg7 {[%emt 0:00:00]} 15. Qb1 {[%emt 0:05:56]} b6 {[%emt 0:03:01]} 16. h3 {[%emt 0:12:11]} Be6 {[%emt 0:01:26]} 17. Ng5 {[%emt 0:00:44]} Bd7 {[%emt 0:00:46]} 18. f4 {[%emt 0:00:36]} Bd4 {[%emt 0:09:09]} 19. Bxd4 {[%emt 0:03:12]} Nxd4 {[%emt 0:00:02]} 20. e5 {[%emt 0:00:34]} Rac8 {[%emt 0:03:27] Strongly threatening ...Rc2.} 21. Nde4 {[%emt 0:01:39]} Bf5 {[%emt 0:01:48] ...h6 would be deadly.} 22. g4 {[%emt 0:07:02]} (22. Qb2 $142 Ne6 23. g4 Bxe4 24. Nxe4) 22... Ne2+ {[%emt 0:03:15]} 23. Kh2 {[%emt 0:17:30] [#]} Nc3 {[%emt 0:01:16]} (23... Bxe4 $1 $19 24. Qxe4 Nc3) 24. Qe1 {[%emt 0:07:25] Now White is beyond hope.} (24. Nf6+ $17 {was the only chance.} Qxf6 25. Qe1) 24... Bxe4 {[%emt 0:05:31]} (24... Nxa2 $2 25. gxf5 f6 26. exf6 Rxf6 27. Nxf6+ Qxf6 28. Qd2 $18) 25. Nxe4 {[%emt 0:07:07]} Nxe4 {[%emt 0:00:08]} ({Inferior is} 25... Nxa2 26. Nf6+ Kg7 27. Nd5 $11 (27. Qh4 Rh8 $11)) 26. Qxe4 {[%emt 0:00:17]} Rfd8 {[%emt 0:26:04][%cal Bf8d8,Bd8d2,Bd2a2][%mdl 32]} 27. Kg3 {[%emt 0:08:18]} Qa3+ {[%emt 0:11:26]} 28. Bf3 {[%emt 0:01:53]} Qd3 {[%emt 0:02:19]} 29. Qe1 {[%emt 0:02:40]} Qd2 {[%emt 0:00:33]} 30. f5 {[%emt 0:01:57]} g5 {[%emt 0:04:20] [#] Hoping for ...Qf4+.} 31. Qxd2 {[%emt 0:01:39]} Rxd2 {[%emt 0:00:02][%mdl 4096] Endgame KRR-KRB} 32. h4 {[%emt 0:00:18]} h6 {[%emt 0:01:07]} 33. hxg5 {[%emt 0:00:05]} hxg5 {[%emt 0:00:01]} ({And not} 33... Rxa2 34. gxh6 Rd2 35. e6 fxe6 36. fxe6 $14) 34. Rh1 {[%emt 0:00:05]} Rc3 {[%emt 0:00:36]} 35. Rf1 {[%emt 0:01:35]} Rxa2 {[%emt 0:00:28]} 36. Rd1 {[%emt 0:00:38]} Raa3 {[%emt 0:00:06]} 37. Rd8+ {[%emt 0:00:33]} Kh7 {[%emt 0:00:10]} 38. f6 {[%emt 0:00:12]} Rxf3+ {[%emt 0:00:06] Black mates.} 39. Kg2 {[%emt 0:00:12]} Rfd3 {[%emt 0:00:49]} 40. Rf8 {[%emt 0:00:07]} Rd2+ {[%emt 0:00:06] Weighted Error Value: White=0.99/Black=0.21 (precise)} 0-1

[Event "Lliga Catalana DH 2023"]
[Site "Catalonia"]
[Date "2023.02.18"]
[Round "5.7"]
[White "Jimenez Ruano, Adrian"]
[Black "Lambert Pont, Michael"]
[Result "1-0"]
[ECO "E73"]
[WhiteElo "2235"]
[BlackElo "2043"]
[Annotator "TA"]
[PlyCount "108"]
[EventDate "2023.01.24"]
[EventType "team-tourn"]
[EventCountry "ESP"]
[SourceTitle "playchess.com"]
[Source "ChessBase"]
[SourceQuality "1"]
[TimeControl "40/5400+30:1800+30"]

{[%evp 14,108,74,60,60,48,70,48,64,71,64,59,64,56,73,38,46,21,66,65,65,74,101,67,73,70,97,31,57,0,45,45,97,53,55,50,75,75,83,55,114,89,102,96,96,97,141,132,163,143,153,143,214,209,205,145,183,146,225,217,492,490,476,475,598,449,899,890,861,854,813,670,797,814,1152,1151,1088,1061,1629,1596,1748,1725,1710,1578,1477,1388,2591,2475,29966,6141,29980,29982,29986,29987,29987,29988,29993]} 1. d4 {[%emt 0:02:45]} Nf6 {[%emt 0:00:04]} 2. c4 {[%emt 0:00:08]} g6 {[%emt 0:00:02]} 3. Nc3 {[%emt 0:00:19]} Bg7 {[%emt 0:00:08]} 4. e4 {[%emt 0:00:06]} d6 {[%emt 0:00:04]} 5. Be2 {[%emt 0:00:41]} O-O {[%emt 0:01:25]} 6. Be3 {[%emt 0:00:06]} e5 {[%emt 0:01:11]} 7. d5 {[%emt 0:00:08]} a5 {[%emt 0:02:52]} 8. g4 {[%emt 0:00:05][%cal Bg2g4,Bg4g5][%mdl 32]} Na6 {[%emt 0:06:41] E73: King's Indian: Averbakh Variation without 6...c5.} 9. g5 {[%emt 0:00:20]} Nd7 {[%emt 0:03:59]} 10. h4 $1 {[%emt 0:00:05]} Ndc5 {[%emt 0:04:04] White is slightly better.} 11. Qd2 {[%emt 0:01:05]} c6 {[%emt 0:04:25]} 12. O-O-O {[%emt 0:03:09]} a4 {[%emt 0:07:03]} 13. f3 {[%emt 0:15:39]} Qa5 {[%emt 0:07:21]} 14. Kb1 {[%emt 0:02:00] [#]} ({Much worse is} 14. dxc6 bxc6 15. Kb1 (15. Qxd6 $2 a3 $19) 15... Rd8 $17) (14. h5 $5) 14... Rd8 $146 {[%emt 0:04:36]} ({Predecessor:} 14... a3 15. b3 Rd8 16. h5 Nb4 17. Nh3 Bd7 18. Nf2 b5 19. dxc6 bxc4 20. Bxc4 Bxc6 {1-0 Grela,K (2294)-Lau,E (1977) Marianske Lazne op 17th 2018 (2)}) 15. Nh3 {[%emt 0:01:43][%cal Oh4h5]} Nc7 {[%emt 0:13:48][%cal Oc5b3]} (15... Nb3 {keeps more tension.} 16. Qe1 Nd4 17. a3 Nc7) 16. Nf2 {[%emt 0:04:29]} cxd5 {[%emt 0:05:07]} 17. Nxd5 {[%emt 0:01:32] Hoping for Qxa5.} Qxd2 {[%emt 0:02:54]} 18. Rxd2 {[%emt 0:00:15]} Nxd5 {[%emt 0:00:09]} 19. cxd5 {[%emt 0:00:18]} b6 {[%emt 0:04:27]} 20. Rc1 {[%emt 0:00:28]} (20. h5 $16) 20... Bd7 {[%emt 0:09:08]} 21. Nd3 {[%emt 0:10:55]} (21. Rg1 $14) 21... Rdc8 {[%emt 0:09:06]} 22. Nb4 {[%emt 0:00:49][%cal Ob4c6]} Bf8 {[%emt 0:01:37]} (22... f5 $14) 23. Rc3 {[%emt 0:03:50]} h6 {[%emt 0:00:58]} 24. Rdc2 {[%emt 0:01:10]} ({Of course not} 24. gxh6 $6 Kh7 $11) 24... hxg5 {[%emt 0:01:19]} 25. hxg5 {[%emt 0:00:19]} Be7 {[%emt 0:00:24]} 26. b3 {[%emt 0:04:50][%cal Ob4c6]} Kg7 {[%emt 0:02:00] [#] White stays focused until the end.} (26... b5 $14) 27. Nc6 $1 $16 {[%emt 0:00:56][%mdl 512]} Bxc6 {[%emt 0:01:48]} 28. dxc6 {[%emt 0:00:01] b4 is the strong threat.} axb3 {[%emt 0:03:50]} 29. axb3 {[%emt 0:00:02][%cal Oc6c7]} Bd8 {[%emt 0:01:17]} (29... Rxc6 $2 30. b4 $18) 30. Bc4 {[%emt 0:05:26] Black is weak on the light squares} Ra7 {[%emt 0:02:00]} 31. b4 {[%emt 0:09:22]} Ne6 {[%emt 0:00:07]} 32. Ra2 $36 {[%emt 0:05:53][%mdl 2048] Black is under strong pressure. White is more active.} Rca8 {[%emt 0:01:19]} (32... Rxa2 $16 {was necessary.} 33. Bxa2 b5) 33. Rxa7 {[%emt 0:04:17]} Rxa7 {[%emt 0:00:00]} 34. Bd5 {[%emt 0:00:39]} Kf8 {[%emt 0:01:33]} 35. Kb2 {[%emt 0:01:25]} Bc7 {[%emt 0:00:36]} (35... Nd4 $16 36. Rd3 b5 37. Bxd4 exd4) 36. Kb3 $18 {[%emt 0:04:59]} Ra8 $2 {[%emt 0:00:35]} (36... Nd4+ 37. Bxd4 exd4) 37. Kc4 {[%emt 0:00:26]} Ke7 {[%emt 0:00:07]} 38. Kb5 {[%emt 0:02:00]} Rb8 {[%emt 0:00:51]} 39. Ra3 {[%emt 0:00:37]} Bd8 {[%emt 0:00:02]} (39... Nd4+ $142 40. Bxd4 exd4) 40. Bxe6 {[%emt 0:00:25]} Kxe6 {[%emt 0:00:58][%mdl 4096] Endgame KRB-KRB} 41. Ra7 {[%emt 0:30:08]} Rc8 {[%emt 0:30:14]} 42. Bxb6 {[%emt 0:00:15]} Bxg5 {[%emt 0:00:35]} 43. Rd7 {[%emt 0:03:14]} Be7 {[%emt 0:00:39]} 44. Bc7 {[%emt 0:03:06]} f5 {[%emt 0:00:28]} 45. Kb6 {[%emt 0:00:12]} fxe4 {[%emt 0:00:14]} 46. fxe4 {[%emt 0:00:00]} g5 {[%emt 0:00:39]} 47. Kb7 {[%emt 0:00:01]} Rg8 {[%emt 0:00:43]} 48. Bb6 {[%emt 0:00:39]} g4 {[%emt 0:00:12]} 49. b5 {[%emt 0:01:44]} g3 {[%emt 0:00:41]} 50. Bg1 {[%emt 0:00:23]} Rf8 {[%emt 0:00:37]} 51. b6 {[%emt 0:00:27] White wants to mate with Kc7.} g2 {[%emt 0:00:23]} 52. Kc7 {[%emt 0:06:42] White mates.} Rf1 {[%emt 0:00:39]} 53. b7 {[%emt 0:00:13]} Rxg1 {[%emt 0:00:30]} 54. b8=Q {[%emt 0:00:07]} (54. b8=B {gets mated.} Ra1) 54... Rf1 {[%emt 0:00:31] Weighted Error Value: White=0.21 (precise) /Black=0.59} 1-0